bitfinex/quotes_BTCUSD_20250108
["timestamp","ask_amount","ask_price","bid_price","bid_amount"]
[1736310498518,2.825e-05,96449.0,96448.0,0.34453659]
[1736310499097,2.825e-05,96449.0,96448.0,0.34353659]
[1736310499274,2.825e-05,96449.0,96448.0,0.34453659]
[1736310499504,2.825e-05,96449.0,96448.0,0.34553659]
[1736310500091,2.825e-05,96449.0,96448.0,0.34453659]
[1736310500455,2.825e-05,96449.0,96448.0,0.34353659]
[1736310500954,2.825e-05,96449.0,96448.0,0.34453659]
[1736310501636,2.825e-05,96449.0,96448.0,0.44059977]
[1736310501829,2.825e-05,96449.0,96448.0,0.34453659]
[1736310502426,2.825e-05,96449.0,96448.0,0.34353659]
[1736310503157,2.825e-05,96449.0,96448.0,0.34453659]
[1736310509006,2.825e-05,96449.0,96448.0,0.57715244]
[1736310509405,2.825e-05,96449.0,96448.0,0.67618685]
[1736310510456,2.825e-05,96449.0,96448.0,0.443571]
[1736310514100,2.825e-05,96449.0,96448.0,0.34453659]
[1736310514924,2.825e-05,96449.0,96448.0,0.34353659]
[1736310516713,2.825e-05,96449.0,96447.0,0.09337723]
[1736310516714,0.357365,96448.0,96447.0,0.09337723]
[1736310516912,0.73148241,96448.0,96447.0,0.09337723]
[1736310517148,0.632448,96448.0,96447.0,0.09337723]
[1736310517309,0.572719,96448.0,96446.0,0.09337723]
[1736310517507,0.392654,96447.0,96446.0,0.09337723]
[1736310517917,0.42436,96447.0,96446.0,0.09337723]
[1736310518550,0.15,96446.0,96439.0,0.09337723]
[1736310518751,0.207382,96440.0,96439.0,0.09337723]
[1736310519173,0.207382,96440.0,96437.0,0.14006585]
[1736310520936,0.207382,96440.0,96436.0,0.09323094]
[1736310522886,0.207382,96440.0,96439.0,0.09323094]
[1736310523111,0.207365,96448.0,96439.0,0.13523607]
[1736310523410,0.207365,96448.0,96439.0,0.09323094]
[1736310523817,2.825e-05,96449.0,96440.0,0.0459]
[1736310524520,2.825e-05,96449.0,96447.0,0.14006585]
[1736310525420,2.825e-05,96449.0,96448.0,0.34396138]
[1736310525621,2.825e-05,96449.0,96448.0,0.42037727]
[1736310525829,2.825e-05,96449.0,96448.0,0.34396138]
[1736310526571,2.825e-05,96449.0,96448.0,0.74836079]
[1736310526774,0.00502825,96449.0,96448.0,0.74836079]
[1736310527594,0.00502825,96449.0,96448.0,1.26234367]
[1736310527809,0.0001708,96452.0,96449.0,0.230363]
[1736310528167,0.0006815,96452.0,96451.0,0.355259]
[1736310528369,0.0006815,96452.0,96451.0,0.48664183]
[1736310529192,0.0006815,96452.0,96451.0,1.31223683]
[1736310529384,0.0006815,96452.0,96451.0,1.41127124]
[1736310529704,0.0006815,96452.0,96451.0,1.76127124]
[1736310530079,0.0001708,96472.0,96465.0,0.329629]
[1736310530281,0.0001708,96472.0,96465.0,0.45166341]
[1736310531279,0.0001708,96472.0,96465.0,1.27725841]
[1736310531453,0.0001708,96472.0,96465.0,2.08638682]
[1736310531682,0.0001708,96472.0,96471.0,0.2]
[1736310531855,0.0001708,96472.0,96471.0,0.47766469]
[1736310532155,0.0001708,96472.0,96471.0,0.62662841]
[1736310532379,0.0001708,96472.0,96471.0,0.72566282]
[1736310532496,0.0001708,96472.0,96471.0,0.93297882]
[1736310532698,0.0001708,96472.0,96471.0,1.75857382]
[1736310533659,0.0001706,96488.0,96484.0,0.1]
[1736310533861,0.00032372,96487.0,96486.0,0.230283]
[1736310534108,0.00032372,96487.0,96486.0,0.41089237]
[1736310535052,0.00032372,96487.0,96486.0,0.75785375]
[1736310535880,0.00032372,96487.0,96486.0,0.80745375]
[1736310537078,0.00132372,96487.0,96486.0,0.81445375]
[1736310537452,0.00132372,96487.0,96486.0,0.73287879]
[1736310538141,0.207244,96505.0,96488.0,0.207279]
[1736310538506,0.207245,96504.0,96489.0,0.12203441]
[1736310538712,0.207245,96504.0,96489.0,0.09903441]
[1736310538914,0.207245,96504.0,96490.0,0.023]
[1736310539047,0.207245,96504.0,96492.0,0.023]
[1736310539249,0.207245,96504.0,96493.0,0.09903441]
[1736310539686,0.414491,96504.0,96493.0,0.09903441]
[1736310539890,0.207245,96504.0,96493.0,0.09903441]
[1736310540331,0.414491,96504.0,96493.0,0.09903441]
[1736310541116,0.414491,96504.0,96493.0,0.13762615]
[1736310541629,0.207245,96504.0,96493.0,0.09903441]
[1736310542650,0.207245,96504.0,96493.0,0.10403441]
[1736310542843,0.001,96505.0,96494.0,0.207266]
[1736310543042,0.001,96505.0,96494.0,0.30630041]
[1736310543242,0.001,96505.0,96501.0,0.414502]
[1736310543444,0.001,96505.0,96504.0,0.023]
[1736310543683,0.001,96505.0,96504.0,0.19743441]
[1736310543820,0.001,96505.0,96504.0,0.24583441]
[1736310544971,0.0001708,96506.0,96505.0,0.230243]
[1736310545134,0.0001708,96506.0,96505.0,0.32927741]
[1736310545348,0.0001708,96506.0,96505.0,0.40972775]
[1736310546177,0.0001708,96506.0,96505.0,0.50244948]
[1736310547058,0.0001708,96506.0,96505.0,0.40972775]
[1736310548462,0.0021708,96506.0,96505.0,0.40972775]
[1736310548759,0.0001708,96506.0,96505.0,0.40972775]
[1736310548967,0.0001708,96513.0,96505.0,0.40972775]
[1736310549168,0.0001708,96513.0,96506.0,0.16873129]
[1736310550137,0.0001708,96513.0,96506.0,0.09903441]
[1736310551276,0.0001708,96513.0,96506.0,0.10003441]
[1736310552979,0.0001708,96513.0,96506.0,0.09903441]
[1736310553254,0.0001708,96513.0,96507.0,0.207238]
[1736310553900,0.0001708,96513.0,96506.0,0.09903441]
[1736310554404,0.0001708,96513.0,96508.0,0.09272173]
[1736310555105,0.0001708,96513.0,96509.0,0.07465252]
[1736310555305,0.0011708,96513.0,96509.0,0.07465252]
[1736310555724,0.0001708,96513.0,96509.0,0.07465252]
[1736310556766,0.0001708,96513.0,96511.0,0.20723]
[1736310556968,0.0001708,96513.0,96512.0,0.10007037]
[1736310557176,0.207182,96534.0,96513.0,0.023]
[1736310557398,0.00032369,96519.0,96515.0,0.023]
[1736310557598,0.00032369,96519.0,96517.0,0.230217]
[1736310557794,0.00032369,96519.0,96518.0,0.12203441]
[1736310558428,0.00032369,96519.0,96518.0,0.16937037]
[1736310558635,0.207175,96537.0,96519.0,0.437425]
[1736310558842,0.207175,96537.0,96521.0,0.023]
[1736310559051,0.207175,96537.0,96521.0,0.12307032]
[1736310559300,0.207163,96542.0,96527.0,0.023]
[1736310559486,0.207163,96542.0,96529.0,0.023]
[1736310559685,0.207163,96542.0,96530.0,0.09903441]
[1736310560093,0.207159,96544.0,96531.0,0.207187]
[1736310560308,0.207159,96544.0,96531.0,0.30622141]
[1736310560514,0.207159,96544.0,96531.0,0.3986021]
[1736310560746,0.207159,96544.0,96532.0,0.01538301]
[1736310560881,0.207163,96542.0,96532.0,0.01538301]
[1736310561891,0.207159,96544.0,96532.0,0.01538301]
[1736310562089,0.207159,96544.0,96533.0,0.03225172]
[1736310562318,0.0030853,96543.0,96534.0,0.03225172]
[1736310562538,8.53e-05,96543.0,96535.0,0.03225172]
[1736310562735,8.53e-05,96543.0,96533.0,0.09208287]
[1736310562981,0.001,96542.0,96534.0,0.06712923]
[1736310563281,0.001,96542.0,96535.0,0.03226013]
[1736310563449,0.001,96542.0,96538.0,0.09238069]
[1736310564254,0.2072473,96543.0,96541.0,0.09238069]
[1736310564462,0.2082473,96543.0,96541.0,0.09238069]
[1736310564657,0.2082473,96543.0,96538.0,0.09238069]
[1736310564879,0.2072473,96543.0,96539.0,0.05926951]
[1736310565086,0.4144093,96543.0,96539.0,0.05926951]
[1736310565444,0.2072473,96543.0,96539.0,0.05926951]
[1736310565869,0.2072473,96543.0,96539.0,0.1516502]
[1736310566138,0.2072473,96543.0,96539.0,0.09238069]
[1736310566356,0.1,96597.0,96541.0,0.023]
[1736310566561,8.52e-05,96603.0,96561.0,0.023]
[1736310566772,8.52e-05,96603.0,96554.0,0.12410414]
[1736310566773,8.52e-05,96603.0,96568.0,0.480107]
[1736310566999,0.00068111,96569.0,96568.0,0.706607]
[1736310567419,0.00068111,96569.0,96565.0,0.207112]
[1736310567420,8.52e-05,96603.0,96582.0,0.023]
[1736310567632,0.00023838,96601.0,96597.0,0.207044]
[1736310567842,0.00023838,96601.0,96600.0,0.023]
[1736310568073,0.00023838,96601.0,96600.0,0.02403504]
[1736310568699,0.00023838,96601.0,96600.0,0.023]
[1736310568900,0.00023838,96601.0,96600.0,0.36522039]
[1736310568901,0.00123838,96601.0,96600.0,0.36522039]
[1736310569108,0.00123838,96601.0,96600.0,0.36418534]
[1736310569365,0.00023838,96601.0,96600.0,0.36418534]
[1736310569574,0.001,96601.0,96600.0,0.37118534]
[1736310569778,0.001,96601.0,96600.0,0.37418534]
[1736310570404,0.00059675,96601.0,96600.0,0.37418534]
[1736310570818,0.00059675,96601.0,96600.0,0.85581896]
[1736310571058,0.00059675,96601.0,96600.0,1.00957767]
[1736310571284,0.00059675,96601.0,96600.0,1.10861208]
[1736310571498,7.5e-07,96601.0,96600.0,1.10861208]
[1736310571703,7.5e-07,96601.0,96600.0,1.99901208]
[1736310572141,8.52e-05,96616.0,96612.0,0.230013]
[1736310572340,8.52e-05,96616.0,96613.0,0.12306918]
[1736310572541,8.52e-05,96616.0,96613.0,0.20216918]
[1736310572674,8.52e-05,96616.0,96613.0,0.20113441]
[1736310573305,8.52e-05,96616.0,96613.0,0.30113441]
[1736310573637,8.52e-05,96639.0,96638.0,0.206957]
[1736310573987,0.00023814,96639.0,96638.0,0.40809141]
[1736310574201,0.00018361,96639.0,96638.0,0.40809141]
[1736310574642,0.00018361,96639.0,96638.0,1.63810184]
[1736310574854,0.00018361,96639.0,96638.0,1.55900184]
[1736310575274,0.00018361,96639.0,96638.0,1.56200184]
[1736310575490,0.00018361,96639.0,96638.0,1.16281037]
[1736310575733,0.00018361,96639.0,96638.0,1.15481037]
[1736310575901,0.00018361,96639.0,96638.0,1.15181037]
[1736310576159,0.00018361,96639.0,96638.0,1.16281037]
[1736310576332,0.00018361,96639.0,96638.0,1.15481037]
[1736310576490,0.206915,96659.0,96638.0,1.13181037]
[1736310576864,0.206915,96659.0,96639.0,0.12203441]
[1736310577221,0.206915,96659.0,96640.0,0.206953]
[1736310577417,0.206915,96659.0,96641.0,0.09903441]
[1736310577816,0.975396,96658.0,96638.0,0.82581896]
[1736310578018,0.206931,96651.0,96638.0,0.82581896]
[1736310578246,0.18296177,96651.0,96642.0,1.0978838]
[1736310578452,0.18296177,96651.0,96642.0,1.0478838]
[1736310578649,0.206919,96656.0,96642.0,1.0478838]
[1736310579000,0.413843,96655.0,96648.0,0.13755337]
[1736310579210,0.15,96659.0,96648.0,0.13755337]
[1736310579417,0.206922,96655.0,96648.0,0.13755337]
[1736310579588,0.206922,96655.0,96646.0,0.09165021]
[1736310579831,0.15,96659.0,96646.0,0.09165021]
[1736310580385,0.15,96659.0,96645.0,0.09165021]
[1736310580585,0.15,96657.0,96645.0,0.09165021]
[1736310580793,0.206919,96656.0,96645.0,0.09165021]
[1736310581415,0.206919,96656.0,96648.0,0.001]
[1736310581795,0.206919,96656.0,96638.0,0.206957]
[1736310582047,0.206919,96656.0,96639.0,0.09903441]
[1736310583847,0.207919,96656.0,96639.0,0.09903441]
[1736310584029,0.206919,96656.0,96639.0,0.09903441]
[1736310584240,0.206919,96656.0,96639.0,0.10203441]
[1736310584866,0.206919,96656.0,96640.0,0.206953]
[1736310585072,0.15,96659.0,96641.0,0.30598441]
[1736310585294,0.15,96659.0,96643.0,0.206947]
[1736310586364,0.15,96657.0,96641.0,0.09903441]
[1736310586581,0.206919,96656.0,96641.0,0.09903441]
[1736310587806,0.206919,96656.0,96641.0,0.10003441]
[1736310588131,0.15,96659.0,96641.0,0.30698441]
[1736310588354,0.206915,96658.0,96641.0,0.30698441]
[1736310588545,0.15,96659.0,96643.0,0.001]
[1736310589158,0.206905,96663.0,96645.0,0.023]
[1736310589364,0.15,96662.0,96647.0,0.023]
[1736310589567,0.15,96662.0,96648.0,0.30597041]
[1736310590180,0.15,96662.0,96648.0,0.09903441]
[1736310590386,0.206882,96674.0,96648.0,0.09903441]
[1736310590560,0.191883,96673.0,96648.0,0.09903441]
[1736310591177,0.206904,96664.0,96648.0,0.09903441]
[1736310591370,0.001,96662.0,96648.0,0.09903441]
[1736310591570,0.206904,96664.0,96648.0,0.09903441]
[1736310591971,0.206904,96664.0,96648.0,0.10103441]
[1736310592171,0.206904,96664.0,96648.0,0.10003441]
[1736310592611,0.001,96662.0,96648.0,0.09903441]
[1736310593166,0.001,96662.0,96649.0,0.02403458]
[1736310593525,0.001,96662.0,96661.0,0.206908]
[1736310593688,0.00050969,96674.0,96661.0,0.09903441]
[1736310594009,0.00050969,96674.0,96667.0,0.206895]
[1736310594213,0.00050969,96674.0,96669.0,0.206891]
[1736310594415,0.00050969,96674.0,96670.0,0.12203441]
[1736310594667,0.00050969,96674.0,96671.0,0.206887]
[1736310594865,0.00050969,96674.0,96672.0,0.09903441]
[1736310595067,0.00050969,96674.0,96673.0,0.206882]
[1736310595191,0.00050969,96674.0,96673.0,0.32891641]
[1736310595392,0.00950969,96674.0,96673.0,0.32891641]
[1736310595838,0.00550969,96674.0,96673.0,0.12203441]
[1736310596939,0.00550969,96674.0,96668.0,0.0465]
[1736310597139,0.00050969,96674.0,96656.0,0.282917]
[1736310597351,0.00150969,96674.0,96659.0,0.023]
[1736310597560,0.00150969,96674.0,96661.0,0.023]
[1736310597752,0.00150969,96674.0,96662.0,0.09903441]
[1736310598138,0.00050969,96674.0,96662.0,0.09903441]
[1736310598492,0.206882,96673.0,96662.0,0.09903441]
[1736310598721,0.206882,96673.0,96661.0,0.002]
[1736310598930,0.206882,96673.0,96662.0,0.005]
[1736310599234,0.00050969,96674.0,96662.0,0.005]
[1736310599235,0.879768,96672.0,96662.0,0.005]
[1736310599439,0.356904,96663.0,96662.0,0.007]
[1736310599645,0.679444,96663.0,96662.0,0.007]
[1736310599847,0.77847841,96663.0,96662.0,0.007]
[1736310600055,0.85367841,96663.0,96662.0,0.007]
[1736310600252,0.85367841,96663.0,96662.0,0.002]
[1736310600460,0.85367841,96663.0,96662.0,0.007]
[1736310600821,0.206962,96637.0,96624.0,0.0807]
[1736310601032,0.12922298,96637.0,96625.0,0.13112213]
[1736310601246,0.206938,96647.0,96626.0,0.03208772]
[1736310601416,0.206965,96635.0,96627.0,0.03215161]
[1736310601649,0.206965,96635.0,96628.0,0.03215161]
[1736310601852,0.1,96648.0,96620.0,0.09903441]
[1736310602052,0.206969,96633.0,96628.0,0.00015294]
[1736310602464,0.206969,96633.0,96629.0,0.03219568]
[1736310602678,0.206969,96633.0,96630.0,0.03219568]
[1736310602879,0.206969,96633.0,96628.0,0.00015294]
[1736310603085,0.206969,96633.0,96629.0,0.03219462]
[1736310603285,0.206969,96633.0,96630.0,0.03219462]
[1736310603462,0.206969,96633.0,96631.0,0.03219462]
[1736310603616,0.206969,96633.0,96628.0,0.00015294]
[1736310603821,0.206969,96633.0,96629.0,0.0322054]
[1736310604023,0.206969,96633.0,96630.0,0.0322054]
[1736310604251,0.206969,96633.0,96631.0,0.0322054]
[1736310604461,0.206969,96633.0,96632.0,0.0322054]
[1736310604674,0.001,96633.0,96632.0,0.0322054]
[1736310604884,0.002,96633.0,96632.0,0.0322054]
[1736310605493,0.15,96646.0,96633.0,0.206968]
[1736310605697,0.15,96650.0,96635.0,0.206964]
[1736310605871,0.206946,96644.0,96636.0,0.0322054]
[1736310606075,0.15,96650.0,96637.0,0.0322054]
[1736310606285,0.15,96646.0,96638.0,0.0322054]
[1736310606625,0.15,96646.0,96639.0,0.0322054]
[1736310606784,0.15,96646.0,96640.0,0.0322054]
[1736310606987,0.15,96646.0,96630.0,0.09903441]
[1736310607190,0.15,96646.0,96631.0,0.03221298]
[1736310607395,0.15,96646.0,96632.0,0.23558218]
[1736310607396,0.002,96633.0,96632.0,0.23558218]
[1736310607624,0.001,96646.0,96633.0,0.023]
[1736310607821,0.15,96653.0,96635.0,0.206964]
[1736310607997,0.005,96646.0,96636.0,0.13124739]
[1736310608312,0.001,96646.0,96637.0,0.03221298]
[1736310608510,0.001,96646.0,96638.0,0.03221298]
[1736310608784,0.206938,96647.0,96639.0,0.03221298]
[1736310608983,0.15,96653.0,96640.0,0.03221298]
[1736310608984,0.206949,96642.0,96640.0,0.03221298]
[1736310609226,0.15,96643.0,96638.0,0.09165021]
[1736310610115,0.15,96643.0,96636.0,0.002]
[1736310610360,0.15,96645.0,96636.0,0.002]
[1736310610591,0.15,96645.0,96634.0,0.09165021]
[1736310610826,0.15,96645.0,96639.0,0.003]
[1736310611136,0.004,96643.0,96640.0,0.03220775]
[1736310611302,0.004,96643.0,96641.0,0.03220775]
[1736310611518,0.004,96643.0,96639.0,0.09165021]
[1736310612032,0.15,96645.0,96639.0,0.09165021]
[1736310612234,0.15,96645.0,96641.0,0.13755337]
[1736310612235,0.15,96643.0,96641.0,0.13755337]
[1736310612436,0.002,96643.0,96641.0,0.13755337]
[1736310612666,0.206949,96642.0,96641.0,0.13755337]
[1736310613246,0.206949,96642.0,96641.0,0.22925562]
[1736310614085,0.413899,96642.0,96641.0,0.34221758]
[1736310614929,0.419899,96642.0,96641.0,0.34221758]
[1736310617801,0.212949,96642.0,96641.0,0.34221758]
[1736310618436,0.212949,96642.0,96628.0,0.00015294]
[1736310618437,0.212949,96642.0,96639.0,0.13917501]
[1736310619047,0.419898,96642.0,96639.0,0.13917501]
[1736310619393,0.212949,96642.0,96639.0,0.0927793]
[1736310620045,0.210949,96642.0,96639.0,0.0927793]
[1736310620284,0.208949,96642.0,96639.0,0.0927793]
[1736310620514,0.211949,96642.0,96638.0,0.0927793]
[1736310621124,0.211949,96642.0,96636.0,0.0927793]
[1736310621327,0.35696,96637.0,96636.0,0.0927793]
[1736310621536,0.61673,96637.0,96636.0,0.0927793]
[1736310622133,0.206976,96630.0,96628.0,0.00015294]
[1736310622328,0.15,96629.0,96628.0,0.00015294]
[1736310623130,0.384731,96629.0,96628.0,0.00015294]
[1736310624431,0.48376541,96629.0,96628.0,0.00015294]
[1736310624929,0.48476541,96629.0,96628.0,0.00015294]
[1736310625140,0.48576541,96629.0,96628.0,0.00015294]
[1736310625352,0.48476541,96629.0,96628.0,0.00015294]
[1736310625749,0.48976541,96629.0,96628.0,0.00015294]
[1736310626291,0.48876541,96629.0,96628.0,0.00015294]
[1736310626901,0.48376541,96629.0,96628.0,0.00015294]
[1736310627111,0.48576541,96629.0,96628.0,0.00015294]
[1736310627334,0.49476541,96629.0,96628.0,0.00015294]
[1736310627638,0.48376541,96629.0,96628.0,0.00015294]
[1736310627870,0.50176541,96629.0,96628.0,0.00115294]
[1736310628254,0.49276541,96629.0,96628.0,0.00115294]
[1736310628409,0.50176541,96629.0,96628.0,0.00115294]
[1736310629971,0.268,96629.0,96628.0,0.00115294]
[1736310630176,0.486914,96629.0,96628.0,0.00115294]
[1736310630619,0.486914,96629.0,96628.0,0.00015294]
[1736310630964,0.495914,96629.0,96628.0,0.00115294]
[1736310631764,0.57694841,96629.0,96628.0,0.00015294]
[1736310632212,0.58594841,96629.0,96628.0,0.00015294]
[1736310633190,0.59494841,96629.0,96628.0,0.00115294]
[1736310633680,0.57694841,96629.0,96628.0,0.00015294]
[1736310633894,0.58594841,96629.0,96628.0,0.00015294]
[1736310634113,0.58594841,96629.0,96628.0,0.00115294]
[1736310634521,0.58594841,96629.0,96628.0,0.00015294]
[1736310634874,0.59494841,96629.0,96628.0,0.00115294]
[1736310635085,0.60394841,96629.0,96628.0,0.00115294]
[1736310635275,0.66264841,96629.0,96628.0,0.00115294]
[1736310635478,0.76264841,96629.0,96628.0,0.00115294]
[1736310636213,0.76264841,96629.0,96600.0,0.0001706]
[1736310636214,0.15,96611.0,96600.0,0.0001706]
[1736310636469,0.207037,96601.0,96600.0,0.0001706]
[1736310636875,0.357037,96601.0,96600.0,0.0001706]
[1736310637311,1.322597,96601.0,96600.0,0.0001706]
[1736310637477,1.406615,96601.0,96600.0,0.0001706]
[1736310637694,0.918961,96601.0,96600.0,0.0001706]
[1736310638086,1.01699541,96601.0,96600.0,0.0001706]
[1736310638288,1.02499541,96601.0,96600.0,0.0001706]
[1736310638609,1.01699541,96601.0,96600.0,0.0001706]
[1736310639037,1.02599541,96601.0,96600.0,0.0001706]
[1736310639445,1.02499541,96601.0,96600.0,0.0001706]
[1736310639815,1.03399541,96601.0,96600.0,0.0001706]
[1736310640210,1.02499541,96601.0,96600.0,0.0001706]
[1736310640996,1.03399541,96601.0,96600.0,0.0001706]
[1736310641221,1.02499541,96601.0,96600.0,0.0001706]
[1736310641424,1.01599541,96601.0,96600.0,0.0001706]
[1736310641649,1.02499541,96601.0,96600.0,0.0001706]
[1736310641853,1.01599541,96601.0,96600.0,0.0001706]
[1736310642470,1.02499541,96601.0,96600.0,0.0001706]
[1736310643112,1.03399541,96601.0,96600.0,0.0001706]
[1736310643558,1.02499541,96601.0,96600.0,0.0001706]
[1736310643989,1.03399541,96601.0,96600.0,0.0001706]
[1736310645777,0.500886,96601.0,96600.0,0.0001706]
[1736310645994,0.478414,96601.0,96600.0,0.0001706]
[1736310646834,0.469414,96601.0,96600.0,0.0001706]
[1736310647430,0.478414,96601.0,96600.0,0.0001706]
[1736310648472,0.47407141,96601.0,96600.0,0.0001706]
[1736310648695,1.57642241,96601.0,96600.0,0.0001706]
[1736310648828,1.55590141,96601.0,96600.0,0.0001706]
[1736310649063,1.41955241,96601.0,96600.0,0.0001706]
[1736310649251,1.41055241,96601.0,96600.0,0.0001706]
[1736310649655,1.41955241,96601.0,96600.0,0.0001706]
[1736310650264,1.41055241,96601.0,96600.0,0.0001706]
[1736310650661,0.35,96599.0,96598.0,2e-07]
[1736310650865,0.44903441,96599.0,96598.0,2e-07]
[1736310651063,0.65706,96590.0,96589.0,8e-07]
[1736310651263,1.21914441,96590.0,96589.0,8.8e-07]
[1736310651903,0.20712,96562.0,96561.0,0.0001704]
[1736310654325,0.21112,96562.0,96561.0,0.0001704]
[1736310655560,0.005,96562.0,96561.0,0.0001704]
[1736310655730,0.005,96562.0,96561.0,0.22544035]
[1736310656084,0.005,96562.0,96561.0,0.24740481]
[1736310656931,0.15,96578.0,96561.0,0.1253704]
[1736310657166,0.001,96562.0,96561.0,0.1253704]
[1736310657797,0.00087544,96562.0,96561.0,0.1253704]
[1736310658012,0.15,96563.0,96561.0,0.1253704]
[1736310658225,0.20712,96562.0,96561.0,0.0453704]
[1736310658505,0.20712,96562.0,96561.0,0.0001704]
[1736310659621,0.20812,96562.0,96561.0,0.0001704]
[1736310660356,0.21312,96562.0,96561.0,0.0001704]
[1736310665708,0.006,96562.0,96561.0,0.0001704]
[1736310667172,0.55627,96562.0,96561.0,0.0001704]
[1736310667980,0.55527,96562.0,96561.0,0.0001704]
[1736310668220,0.55027,96562.0,96561.0,0.0001704]
[1736310668422,0.55127,96562.0,96561.0,0.0001704]
[1736310668621,0.65030441,96562.0,96561.0,0.0001704]
[1736310668984,0.64930441,96562.0,96561.0,0.0001704]
[1736310669189,0.65830441,96562.0,96561.0,0.0001704]
[1736310669762,0.64930441,96562.0,96561.0,0.0001704]
[1736310670135,0.65330441,96562.0,96561.0,0.0001704]
[1736310670343,0.64930441,96562.0,96561.0,0.0001704]
[1736310670691,0.65830441,96562.0,96561.0,0.0001704]
[1736310670891,0.64930441,96562.0,96561.0,0.0001704]
[1736310671087,0.15,96562.0,96561.0,0.0001704]
[1736310671298,0.168,96562.0,96561.0,0.0001704]
[1736310671609,0.018,96562.0,96561.0,0.0001704]
[1736310671822,0.009,96562.0,96561.0,0.0001704]
[1736310672028,0.018,96562.0,96561.0,0.0001704]
[1736310672252,0.018,96562.0,96561.0,0.1277704]
[1736310672451,0.21612,96562.0,96561.0,0.1277704]
[1736310672813,0.22512,96562.0,96561.0,0.1277704]
[1736310673250,0.21612,96562.0,96561.0,0.1277704]
[1736310673446,0.22512,96562.0,96561.0,0.1277704]
[1736310673841,0.21612,96562.0,96561.0,0.0001704]
[1736310674044,0.22112,96562.0,96561.0,0.0001704]
[1736310674270,0.21212,96562.0,96561.0,0.0001704]
[1736310674682,0.21312,96562.0,96561.0,0.0001704]
[1736310674905,0.20812,96562.0,96561.0,0.0001704]
[1736310675113,0.20712,96562.0,96561.0,0.0001704]
[1736310675337,0.21412,96562.0,96561.0,0.0001704]
[1736310675597,0.21612,96562.0,96561.0,0.0001704]
[1736310676023,0.21412,96562.0,96561.0,0.0001704]
[1736310676216,1.036854,96562.0,96561.0,0.0001704]
[1736310676425,0.777079,96562.0,96561.0,0.0001704]
[1736310676581,0.551521,96562.0,96561.0,0.0001704]
[1736310676787,0.539776,96562.0,96561.0,0.0001704]
[1736310676992,0.530776,96562.0,96561.0,0.0001704]
[1736310677458,0.539776,96562.0,96561.0,0.0001704]
[1736310677633,0.36612,96562.0,96561.0,0.0001704]
[1736310677769,0.36812,96562.0,96561.0,0.0001704]
[1736310678295,0.36612,96562.0,96561.0,0.0001704]
[1736310678723,0.37512,96562.0,96561.0,0.0001704]
[1736310678945,0.477623,96562.0,96561.0,0.0001704]
[1736310679264,0.468623,96562.0,96561.0,0.0001704]
[1736310679491,0.461623,96562.0,96561.0,0.0001704]
[1736310679685,0.35912,96562.0,96561.0,0.0001704]
[1736310679890,0.36812,96562.0,96561.0,0.0001704]
[1736310680775,0.35712,96562.0,96561.0,0.0001704]
[1736310680983,0.36412,96562.0,96561.0,0.0001704]
[1736310681183,0.37312,96562.0,96561.0,0.0001704]
[1736310681591,0.563004,96562.0,96561.0,0.0001704]
[1736310681858,0.565004,96562.0,96561.0,0.0001704]
[1736310682042,0.36612,96562.0,96561.0,0.0001704]
[1736310682278,0.640274,96562.0,96561.0,0.0001704]
[1736310683714,0.81460841,96562.0,96561.0,0.0001704]
[1736310684131,0.81260841,96562.0,96561.0,0.0001704]
[1736310684572,0.80560841,96562.0,96561.0,0.0001704]
[1736310684787,0.80760841,96562.0,96561.0,0.0001704]
[1736310685180,0.81360841,96562.0,96561.0,0.0001704]
[1736310685383,0.82260841,96562.0,96561.0,0.0001704]
[1736310686353,0.73930841,96562.0,96561.0,0.0001704]
[1736310687265,0.74830841,96562.0,96561.0,0.0001704]
[1736310687473,0.477566,96562.0,96561.0,0.0001704]
[1736310687696,0.468566,96562.0,96561.0,0.0001704]
[1736310687926,0.486566,96562.0,96561.0,0.0001704]
[1736310688453,0.477566,96562.0,96561.0,0.0001704]
[1736310688654,0.327566,96562.0,96561.0,0.0001704]
[1736310688864,0.336566,96562.0,96561.0,0.0001704]
[1736310689306,0.486566,96562.0,96561.0,0.0001704]
[1736310689691,0.477566,96562.0,96561.0,0.0001704]
[1736310689864,0.486566,96562.0,96561.0,0.0001704]
[1736310690274,0.58560041,96562.0,96561.0,0.0001704]
[1736310691067,0.586374,96562.0,96561.0,0.0001704]
[1736310692557,0.37512,96562.0,96561.0,0.0001704]
[1736310692922,0.37512,96562.0,96561.0,0.1247704]
[1736310693153,0.018,96562.0,96561.0,0.1247704]
[1736310693324,0.018,96562.0,96561.0,0.22380481]
[1736310693809,0.009,96562.0,96561.0,0.22380481]
[1736310694558,0.012,96562.0,96561.0,0.22380481]
[1736310694689,0.003,96562.0,96561.0,0.22380481]
[1736310696487,0.003,96562.0,96561.0,0.5902921]
[1736310696645,0.207052,96595.0,96561.0,0.5902921]
[1736310696646,0.207052,96595.0,96562.0,0.023]
[1736310696847,0.207052,96595.0,96578.0,0.1277]
[1736310697276,0.207047,96597.0,96579.0,0.53723675]
[1736310697442,0.207047,96597.0,96580.0,0.0786]
[1736310697643,0.207059,96591.0,96580.0,0.0786]
[1736310697844,0.00115277,96590.0,96580.0,0.0786]
[1736310698627,0.207066,96588.0,96584.0,0.09302353]
[1736310699025,0.00115277,96590.0,96584.0,0.09302353]
[1736310699239,0.00115277,96590.0,96584.0,0.30009653]
[1736310699240,0.00015277,96590.0,96584.0,0.30009653]
[1736310699475,0.00015277,96590.0,96584.0,0.207073]
[1736310700006,0.005,96588.0,96584.0,0.207073]
[1736310700637,0.006,96588.0,96584.0,0.207073]
[1736310700846,0.001,96588.0,96584.0,0.207073]
[1736310701315,0.00015277,96590.0,96584.0,0.207073]
[1736310701464,0.00015277,96590.0,96581.0,0.20708]
[1736310701672,0.00015277,96590.0,96582.0,0.09903441]
[1736310702193,0.00115277,96590.0,96582.0,0.09903441]
[1736310702391,0.00015277,96590.0,96582.0,0.09903441]
[1736310704648,0.207062,96589.0,96582.0,0.09903441]
[1736310704854,0.00015277,96590.0,96580.0,0.0786]
[1736310705055,0.00015277,96590.0,96581.0,0.09903441]
[1736310705608,0.00115277,96590.0,96581.0,0.09903441]
[1736310706068,0.414149,96584.0,96580.0,0.0786]
[1736310706271,0.207074,96584.0,96580.0,0.0786]
[1736310707229,0.207075,96583.0,96580.0,0.0786]
[1736310707420,0.207075,96583.0,96578.0,0.0491]